fUST/lending_fUST_20250605
["ID","MTS","AMOUNT","RATE_DAILY","PERIOD"]
[364415385,1749096641508,-440.0,0.00017679,2]
[364415387,1749096641521,-420.0,0.00017679,2]
[364415389,1749096641533,-1647.12,0.00017679,2]
[364415391,1749096641542,-420.0,0.00017679,2]
[364415393,1749096641552,-423.54298025,0.00017679,2]
[364415395,1749096641561,-505.83,0.00017679,2]
[364415397,1749096641571,-426.01360692,0.00017679,2]
[364415399,1749096641582,-440.0,0.00017679,2]
[364415401,1749096641592,-420.0,0.00017679,2]
[364415403,1749096641601,-420.0,0.00017679,2]
[364415405,1749096641611,-420.0,0.00017679,2]
[364415407,1749096641621,-420.0,0.00017679,2]
[364415409,1749096641631,-420.0,0.00017679,2]
[364415411,1749096641641,-420.0,0.00017679,2]
[364415413,1749096641650,-440.0,0.00017679,2]
[364415415,1749096641660,-440.0,0.00017679,2]
[364415417,1749096641669,-420.0,0.00017679,2]
[364415434,1749096641834,-426.84384259,0.00017679,2]
[364415436,1749096641851,-521.76849079,0.00017679,2]
[364415438,1749096641861,-500.0,0.00017683,2]
[364415440,1749096641871,-420.15947908,0.00017683,2]
[364415442,1749096641881,-420.0,0.00017683,2]
[364415444,1749096641891,-1460.94,0.00017683,2]
[364415446,1749096641900,-5970.49,0.00017683,2]
[364415448,1749096641910,-440.0,0.00017683,2]
[364415451,1749096641919,-440.0,0.00017683,2]
[364415453,1749096641928,-654.22,0.00017683,2]
[364415454,1749096641937,-420.0,0.00017683,2]
[364415457,1749096641947,-440.0,0.00017683,2]
[364415459,1749096641956,-634.9,0.00017683,2]
[364415460,1749096641967,-440.0,0.00017683,2]
[364415462,1749096641976,-834.95,0.00017683,2]
[364415464,1749096641985,-440.0,0.00017684,2]
[364415466,1749096641995,-426.40434378,0.00017684,2]
[364415468,1749096642004,-440.0,0.00017684,2]
[364415470,1749096642013,-440.0,0.00017684,2]
[364415472,1749096642023,-420.0,0.00017684,2]
[364415474,1749096642033,-420.0,0.00017684,2]
[364415476,1749096642042,-420.0,0.00017684,2]
[364415478,1749096642051,-420.0,0.00017684,2]
[364415480,1749096642060,-539.43584037,0.00017684,2]
[364415481,1749096642069,-420.0,0.00017684,2]
[364415483,1749096642078,-420.0,0.00017684,2]
[364415485,1749096642087,-312.75686448,0.00017684,2]
[364415487,1749096642097,-420.0,0.00017684,2]
[364415489,1749096642106,-420.0,0.00017684,2]
[364415491,1749096642115,-420.0,0.00017684,2]
[364415493,1749096642124,-420.0,0.00017684,2]
[364415495,1749096642133,-294.04809269,0.00017684,2]
[364415497,1749096642142,-420.0,0.00017684,2]
[364415499,1749096642151,-410.0,0.00017684,2]
[364415501,1749096642160,-420.0,0.00017684,2]
[364415502,1749096642169,-420.0,0.00017684,2]
[364415504,1749096642178,-440.0,0.00017684,2]
[364415506,1749096642187,-420.0,0.00017684,2]
[364415508,1749096642197,-420.0,0.00017684,2]
[364415510,1749096642207,-440.0,0.00017684,2]
[364415512,1749096642216,-440.0,0.00017684,2]
[364415514,1749096642226,-420.0,0.00017684,2]
[364415516,1749096642236,-387.46595788,0.00017684,2]
[364415518,1749096642245,-420.0,0.00017684,2]
[364415520,1749096642254,-420.0,0.00017684,2]
[364415522,1749096642263,-440.0,0.00017684,2]
[364415524,1749096642273,-338.65314575,0.00017684,2]
[364415526,1749096642282,-440.0,0.00017684,2]
[364415528,1749096642291,-320.64842356,0.00017684,2]
[364415530,1749096642299,-1070.77045404,0.00017684,2]
[364415532,1749096642309,-366.87484101,0.00017684,2]
[364415534,1749096642318,-420.0,0.00017684,2]
[364415535,1749096642327,-435.76305666,0.00017684,2]
[364415537,1749096642337,-388.5965385,0.00017684,2]
[364415539,1749096642346,-420.0,0.00017684,2]
[364415541,1749096642357,-440.0,0.00017684,2]
[364415543,1749096642366,-426.06356474,0.00017684,2]
[364415545,1749096642375,-420.0,0.00017684,2]
[364415547,1749096642385,-428.037127,0.00017684,2]
[364415549,1749096642393,-440.0,0.00017684,2]
[364415551,1749096642403,-440.0,0.00017684,2]
[364415553,1749096642412,-219.92550362,0.00017684,2]
[364415555,1749096642421,-420.0,0.00017684,2]
[364415557,1749096642431,-420.0,0.00017684,2]
[364415559,1749096642440,-188.04279203,0.00017684,2]
[364415561,1749096642450,-420.0,0.00017684,2]
[364415563,1749096642459,-428.54585155,0.00017684,2]
[364415565,1749096642468,-420.0,0.00017684,2]
[364415566,1749096642477,-5970.49,0.00017684,2]
[364415568,1749096642486,-430.0,0.00017685,2]
[364415570,1749096642495,-430.0,0.00017685,2]
[364415572,1749096642504,-401.7945903,0.00017685,2]
[364415574,1749096642514,-431.4009782,0.00017685,2]
[364415576,1749096642523,-430.0,0.00017685,2]
[364415578,1749096642534,-500.0,0.00017685,2]
[364415580,1749096642543,-504.54985955,0.00017768,2]
[364415582,1749096642552,-440.0,0.00017808,2]
[364415584,1749096642562,-440.0,0.00017808,2]
[364415586,1749096642571,-872.65,0.00017808,2]
[364415588,1749096642580,-1001.54,0.00017808,2]
[364415590,1749096642590,-1271.59,0.00017808,2]
[364415592,1749096642599,-440.0,0.00017808,2]
[364415594,1749096642608,-440.0,0.00017808,2]
[364415596,1749096642617,-440.0,0.00017808,2]
[364415598,1749096642626,-376.00236887,0.00017808,2]
[364415599,1749096642635,-440.0,0.00017808,2]
[364415601,1749096642644,-530.83,0.00017808,2]
[364415603,1749096642653,-440.0,0.00017808,2]
[364415605,1749096642662,-420.0,0.00017808,2]
[364415607,1749096642672,-440.0,0.00017808,2]
[364415609,1749096642681,-440.0,0.00017808,2]
[364415611,1749096642691,-829.91,0.00017808,2]
[364415613,1749096642700,-1222.49,0.00017808,2]
[364415615,1749096642710,-420.0,0.00017831,2]
[364415617,1749096642720,-420.0,0.00017831,2]
[364415620,1749096642729,-27316.65,0.00017868,2]
[364415623,1749096642738,-1680.0,0.0001792,2]
[364415626,1749096642748,-4719.19022783,0.00017951,3]
[364415629,1749096642757,-93809.94046979,0.00017951,2]
[364415632,1749096642767,-440.0,0.00017952,2]
[364415635,1749096642776,-440.0,0.00017952,2]
[364415638,1749096642785,-532.05979569,0.00017952,2]
[364415641,1749096642795,-440.0,0.00017952,2]
[364415644,1749096642806,-440.0,0.00017952,2]
[364415647,1749096642815,-339.33911353,0.00017952,2]
[364415649,1749096642825,-440.0,0.00017952,2]
[364415652,1749096642834,-440.0,0.00017952,2]
[364415654,1749096642844,-440.0,0.00017952,2]
[364415656,1749096642853,-440.0,0.00017952,2]
[364415658,1749096642862,-440.0,0.00017952,2]
[364415660,1749096642871,-400.0,0.00017952,2]
[364415662,1749096642883,-440.0,0.00017952,2]
[364415664,1749096642893,-303.76986465,0.00017952,2]
[364415666,1749096642902,-440.0,0.00017952,2]
[364415668,1749096642911,-440.0,0.00017952,2]
[364415670,1749096642922,-418.77042877,0.00017952,2]
[364415672,1749096642931,-440.0,0.00017952,2]
[364415674,1749096642940,-440.0,0.00017952,2]
[364415676,1749096642949,-440.0,0.00017952,2]
[364415678,1749096642960,-454.06206876,0.00017952,2]
[364415680,1749096642969,-440.0,0.00017952,2]
[364415682,1749096642979,-5970.49,0.00017952,2]
[364415684,1749096642988,-494.06,0.00017952,2]
[364415686,1749096642997,-440.0,0.00017952,2]
[364415688,1749096643010,-440.0,0.00017952,2]
[364415690,1749096643020,-440.0,0.00017952,2]
[364415692,1749096643030,-410.0,0.00017952,2]
[364415694,1749096643040,-440.0,0.00017952,2]
[364415696,1749096643049,-440.0,0.00017952,2]
[364415698,1749096643059,-440.0,0.00017952,2]
[364415700,1749096643068,-440.0,0.00017952,2]
[364415702,1749096643078,-440.0,0.00017952,2]
[364415704,1749096643087,-440.0,0.00017952,2]
[364415706,1749096643097,-440.0,0.00017952,2]
[364415708,1749096643106,-425.52197514,0.00017952,2]
[364415710,1749096643115,-440.0,0.00017952,2]
[364415711,1749096643125,-440.0,0.00017952,2]
[364415713,1749096643134,-440.0,0.00017952,2]
[364415715,1749096643143,-440.0,0.00017952,2]
[364415717,1749096643153,-440.0,0.00017952,2]
[364415719,1749096643162,-151.0,0.00017952,2]
[364415721,1749096643172,-440.0,0.00017952,2]
[364415722,1749096643181,-370.0,0.00017952,2]
[364415723,1749096643190,-350.0,0.00017952,2]
[364415724,1749096643200,-440.0,0.00017952,2]
[364415725,1749096643209,-440.0,0.00017952,2]
[364415726,1749096643218,-350.0,0.00017952,2]
[364415727,1749096643227,-449.86,0.00017952,2]
[364415728,1749096643237,-440.0,0.00017952,2]
[364415729,1749096643246,-429.25462796,0.00017952,2]
[364415731,1749096643256,-440.0,0.00017952,2]
[364415733,1749096643265,-440.0,0.00017952,2]
[364415735,1749096643273,-410.0,0.00017952,2]
[364415737,1749096643283,-440.0,0.00017952,2]
[364415739,1749096643293,-152.049861,0.00017952,2]
[364415741,1749096643303,-389.75034397,0.00017952,2]
[364415743,1749096643312,-440.0,0.00017952,2]
[364415745,1749096643321,-440.0,0.00017952,2]
[364415747,1749096643331,-180.52497723,0.00017952,2]
[364415749,1749096643342,-440.0,0.00017952,2]
[364415751,1749096643351,-440.0,0.00017952,2]
[364415753,1749096643360,-440.0,0.00017952,2]
[364415755,1749096643370,-410.0,0.00017953,2]
[364415757,1749096643380,-422.27558329,0.00017953,2]
[364415759,1749096643391,-410.0,0.00017953,2]
[364415761,1749096643400,-440.0,0.00017953,2]
[364415763,1749096643409,-440.0,0.00017953,2]
[364415765,1749096643418,-440.0,0.00017953,2]
[364415767,1749096643427,-440.0,0.00017953,2]
[364415769,1749096643437,-440.0,0.00017953,2]
[364415771,1749096643447,-440.0,0.00017953,2]
[364415772,1749096643457,-400.0,0.00017953,2]
[364415775,1749096643467,-440.0,0.00017953,2]
[364415777,1749096643477,-410.0,0.00017953,2]
[364415779,1749096643486,-1647.12,0.00017953,2]
[364415781,1749096643495,-505.83,0.00017953,2]
[364415783,1749096643505,-400.0,0.00017953,2]
[364415785,1749096643514,-390.0,0.00017953,2]
[364415787,1749096643523,-440.0,0.00017953,2]
[364415789,1749096643533,-1460.94,0.00017957,2]
[364415791,1749096643545,-5970.49,0.00017957,2]
[364415793,1749096643554,-440.0,0.00017957,2]
[364415795,1749096643564,-440.0,0.00017957,2]
[364415797,1749096643573,-654.22,0.00017957,2]
[364415799,1749096643583,-380.0,0.00017957,2]
[364415801,1749096643593,-634.9,0.00017957,2]
[364415803,1749096643602,-440.0,0.00017957,2]
[364415805,1749096643612,-834.95,0.00017957,2]
[364415807,1749096643622,-500.0,0.00017957,2]
[364415809,1749096643632,-498.49663397,0.00017957,2]
[364415811,1749096643641,-515.04161877,0.00017958,2]
[364415813,1749096643651,-440.0,0.00017958,2]
[364415815,1749096643661,-440.0,0.00017958,2]
[364415817,1749096643670,-517.7260885,0.00017958,2]
[364415819,1749096643679,-448.93454107,0.00017958,2]
[364415821,1749096643688,-410.0,0.00017958,2]
[364415823,1749096643698,-520.74012256,0.00017958,2]
[364415825,1749096643707,-400.0,0.00017958,2]
[364415827,1749096643718,-440.0,0.00017958,2]
[364415829,1749096643727,-410.0,0.00017958,2]
[364415831,1749096643737,-440.0,0.00017958,2]
[364415833,1749096643747,-1945.49950943,0.00018,2]
[364415835,1749096643756,-500.0,0.00018021,2]
[364415837,1749096643766,-1065.67274226,0.00018021,2]
[364415839,1749096643776,-502.7448626,0.00018029,2]
[364415841,1749096643787,-500.18900707,0.00018029,2]
[364415843,1749096643797,-2866.2,0.0001804,2]
[364415845,1749096643811,-2866.2,0.0001804,2]
[364415847,1749096643822,-2866.2,0.0001804,2]
[364415849,1749096643831,-2866.2,0.0001804,2]
[364415851,1749096643841,-440.0,0.00018082,2]
[364415853,1749096643851,-440.0,0.00018082,2]
[364415855,1749096643860,-872.65,0.00018082,2]
[364415857,1749096643871,-1001.54,0.00018082,2]
[364415859,1749096643881,-1271.59,0.00018082,2]
[364415861,1749096643891,-440.0,0.00018082,2]
[364415863,1749096643900,-440.0,0.00018082,2]
[364415865,1749096643909,-440.0,0.00018082,2]
[364415867,1749096643919,-440.0,0.00018082,2]
[364415869,1749096643929,-530.83,0.00018082,2]
[364415871,1749096643938,-440.0,0.00018082,2]
[364415873,1749096643948,-472.53,0.00018082,2]
[364415875,1749096643957,-440.0,0.00018082,2]
[364415877,1749096643968,-829.91,0.00018082,2]
[364415879,1749096643977,-1222.49,0.00018082,2]
[364415881,1749096643986,-1945.49950924,0.00018141,2]
[364415883,1749096643996,-163.65779169,0.00018226,2]
[364415885,1749096644006,-440.0,0.00018226,2]
[364415887,1749096644016,-440.0,0.00018226,2]
[364415889,1749096644025,-440.0,0.00018226,2]
[364415891,1749096644034,-440.0,0.00018226,2]
[364415893,1749096644043,-440.0,0.00018226,2]
[364415895,1749096644053,-400.04325517,0.00018226,2]
[364415897,1749096644063,-343.61316749,0.00018226,2]
[364415899,1749096644072,-440.0,0.00018226,2]
[364415901,1749096644082,-440.0,0.00018226,2]
[364415903,1749096644091,-414.28826946,0.00018226,2]
[364415905,1749096644100,-440.0,0.00018226,2]
[364415907,1749096644110,-440.0,0.00018226,2]
[364415909,1749096644120,-400.0,0.00018226,2]
[364415911,1749096644129,-396.96111193,0.00018226,2]
[364415913,1749096644138,-440.0,0.00018226,2]
[364415914,1749096644148,-3106.81493976,0.00018226,2]
[364415917,1749096644167,-2064.5055936,0.00018226,2]
[364415920,1749096644182,-799.16946664,0.00018226,2]
[364415921,1749096644192,-211.79895191,0.00018226,2]
[364415924,1749096644204,-282.26104809,0.00018226,2]
[364415926,1749096644214,-440.0,0.00018226,2]
[364415928,1749096644223,-359.50337825,0.00018226,2]
[364415930,1749096644235,-20.49662175,0.00018226,2]
[364415932,1749096644244,-400.0,0.00018226,2]
[364415934,1749096644254,-440.0,0.00018226,2]
[364415936,1749096644264,-526.01447911,0.00018226,2]
[364415938,1749096644274,-71.40300353,0.00018226,2]
[364416026,1749096645115,-151.0,0.00017952,2]
[364416028,1749096645124,-500.0,0.00017956,2]
[364416030,1749096645133,-500.0,0.00017956,2]
[364416032,1749096645143,-500.0,0.00017956,2]
[364416034,1749096645152,-500.0,0.00017956,2]
[364416036,1749096645162,-500.0,0.00017956,2]
[364416038,1749096645171,-500.0,0.00017956,2]
[364416040,1749096645180,-500.0,0.00017956,2]
[364416042,1749096645189,-500.0,0.00017956,2]
[364416044,1749096645199,-500.0,0.00017956,2]
[364416046,1749096645208,-500.0,0.00017956,2]
[364416048,1749096645218,-528.55133107,0.00017956,2]
[364416050,1749096645227,-306.14519124,0.00017956,2]
[364416052,1749096645239,-193.85480876,0.00017956,2]
[364416054,1749096645248,-500.0,0.00017956,2]
[364416056,1749096645257,-500.0,0.00017956,2]
[364416058,1749096645266,-500.0,0.00017956,2]
[364416060,1749096645276,-500.0,0.00017956,2]
[364416062,1749096645287,-500.0,0.00017956,2]
[364416064,1749096645296,-500.0,0.00017956,2]
[364416066,1749096645305,-500.0,0.00017956,2]
[364416068,1749096645315,-500.0,0.00017956,2]
[364416070,1749096645324,-206.19694098,0.00017956,2]
[364416072,1749096645333,-500.0,0.00017956,2]
[364416074,1749096645343,-500.0,0.00017956,2]
[364416076,1749096645352,-500.0,0.00017956,2]
[364416078,1749096645361,-500.0,0.00017956,2]
[364416080,1749096645371,-500.0,0.00017956,2]
[364416082,1749096645380,-500.0,0.00017956,2]
[364416084,1749096645390,-500.0,0.00017956,2]
[364416086,1749096645399,-500.0,0.00017956,2]
[364416088,1749096645410,-500.0,0.00017956,2]
[364416090,1749096645419,-500.0,0.00017956,2]
[364416092,1749096645428,-500.0,0.00017956,2]
[364416094,1749096645438,-203.44730478,0.00017956,2]
[364416096,1749096645447,-434.97160374,0.00017956,2]
[364416098,1749096645456,-500.0,0.00017956,2]
[364416100,1749096645465,-500.0,0.00017956,2]
[364416102,1749096645476,-500.0,0.00017956,2]
[364416104,1749096645486,-500.0,0.00017956,2]
[364416106,1749096645495,-500.0,0.00017956,2]
[364416108,1749096645505,-500.0,0.00017956,2]
[364416110,1749096645514,-500.0,0.00017956,2]
[364416112,1749096645524,-500.0,0.00017956,2]
[364416114,1749096645534,-500.0,0.00017956,2]
[364416116,1749096645543,-500.0,0.00017956,2]
[364416118,1749096645553,-500.0,0.00017956,2]
[364416120,1749096645562,-500.0,0.00017956,2]
[364416122,1749096645572,-500.0,0.00017956,2]
[364416123,1749096645583,-500.0,0.00017956,2]
[364416126,1749096645592,-500.0,0.00017956,2]
[364416127,1749096645602,-450.0,0.00017956,2]
[364416130,1749096645611,-500.0,0.00017956,2]
[364416131,1749096645620,-500.0,0.00017956,2]
[364416133,1749096645629,-500.0,0.00017956,2]
[364416135,1749096645639,-500.0,0.00017956,2]
[364416137,1749096645648,-500.0,0.00017956,2]
[364416139,1749096645657,-500.0,0.00017956,2]
[364416141,1749096645666,-308.59699647,0.00018226,2]
[364416143,1749096645675,-440.0,0.00018226,2]
[364416145,1749096645684,-440.0,0.00018226,2]
[364416147,1749096645694,-390.53136405,0.00018226,2]
[364416149,1749096645703,-440.0,0.00018226,2]
[364416151,1749096645712,-380.0,0.00018226,2]
[364416153,1749096645721,-440.0,0.00018226,2]
[364416155,1749096645730,-440.0,0.00018226,2]
[364416157,1749096645739,-440.0,0.00018226,2]
[364416159,1749096645749,-440.0,0.00018226,2]
[364416161,1749096645758,-440.0,0.00018226,2]
[364416163,1749096645768,-440.0,0.00018226,2]
[364416165,1749096645777,-440.0,0.00018226,2]
[364416167,1749096645788,-449.86,0.00018226,2]
[364416169,1749096645798,-440.0,0.00018226,2]
[364416171,1749096645810,-400.0,0.00018226,2]
[364416173,1749096645821,-440.0,0.00018226,2]
[364416175,1749096645830,-440.0,0.00018226,2]
[364416177,1749096645839,-440.0,0.00018226,2]
[364416179,1749096645848,-440.0,0.00018226,2]
[364416181,1749096645857,-410.0,0.00018226,2]
[364416183,1749096645867,-440.0,0.00018226,2]
[364416185,1749096645876,-440.0,0.00018226,2]
[364416187,1749096645885,-440.0,0.00018227,2]
[364416188,1749096645895,-424.85902584,0.00018227,2]
[364416191,1749096645904,-440.0,0.00018227,2]
[364416193,1749096645914,-440.0,0.00018227,2]
[364416195,1749096645923,-440.0,0.00018227,2]
[364416197,1749096645932,-440.0,0.00018227,2]
[364416199,1749096645941,-440.0,0.00018227,2]
[364416200,1749096645950,-1647.12,0.00018227,2]
[364416202,1749096645960,-505.83,0.00018227,2]
[364416204,1749096645969,-329.09292648,0.00018227,2]
[364416206,1749096645978,-151.0,0.00018227,2]
[364416208,1749096645988,-162.527689,0.00018227,2]
[364416210,1749096645997,-162.527689,0.00018227,2]
[364416213,1749096646006,-151.0,0.00018227,2]
[364416214,1749096646016,-231.503408,0.00018227,2]
[364416217,1749096646026,-231.503408,0.00018227,2]
[364416219,1749096646036,-1460.94,0.00018231,2]
[364416220,1749096646045,-440.0,0.00018231,2]
[364416223,1749096646054,-380.0,0.00018231,2]
[364416225,1749096646063,-654.22,0.00018231,2]
[364416226,1749096646072,-634.9,0.00018231,2]
[364416229,1749096646082,-400.0,0.00018231,2]
[364416231,1749096646091,-834.95,0.00018231,2]
[364416233,1749096646101,-547.75874635,0.00018232,2]
[364416235,1749096646110,-440.0,0.00018232,2]
[364416237,1749096646119,-371.2883976,0.00018232,2]
[364416239,1749096646132,-36.06218894,0.00018232,2]
[364416241,1749096646141,-440.0,0.00018232,2]
[364416243,1749096646151,-5970.49,0.00018232,2]
[364416245,1749096646160,-152.890315,0.00018232,2]
[364416247,1749096646170,-155.47771843,0.00018331,2]
[364416249,1749096646179,-368.26926586,0.00018355,2]
[364416251,1749096646188,-501.13706826,0.00018355,2]
[364416253,1749096646199,-440.0,0.00018356,2]
[364416255,1749096646208,-872.65,0.00018356,2]
[364416257,1749096646218,-1001.54,0.00018356,2]
[364416259,1749096646227,-1271.59,0.00018356,2]
[364416261,1749096646237,-440.0,0.00018356,2]
[364416263,1749096646246,-440.0,0.00018356,2]
[364416265,1749096646255,-440.0,0.00018356,2]
[364416266,1749096646265,-440.0,0.00018356,2]
[364416269,1749096646274,-460.00126894,0.00018356,2]
[364416271,1749096646287,-70.82873106,0.00018356,2]
[364416273,1749096646296,-380.0,0.00018356,2]
[364416275,1749096646305,-440.0,0.00018356,2]
[364416277,1749096646317,-829.91,0.00018356,2]
[364416279,1749096646326,-1222.49,0.00018356,2]
[364416281,1749096646335,-1945.49950924,0.00018383,2]
[364416282,1749096646345,-157.819886,0.00018499,2]
[364416284,1749096646354,-500.0,0.000185,2]
[364416286,1749096646363,-440.0,0.000185,2]
[364416288,1749096646373,-390.0,0.000185,2]
[364416290,1749096646382,-432.70015518,0.000185,2]
[364416292,1749096646391,-380.0,0.000185,2]
[364416294,1749096646402,-380.0,0.000185,2]
[364416297,1749096646411,-380.0,0.000185,2]
[364416299,1749096646420,-380.0,0.000185,2]
[364416301,1749096646429,-440.0,0.000185,2]
[364416303,1749096646438,-440.0,0.000185,2]
[364416305,1749096646448,-440.0,0.000185,2]
[364416307,1749096646457,-494.06,0.000185,2]
[364416309,1749096646466,-440.0,0.000185,2]
[364416311,1749096646475,-440.0,0.000185,2]
[364416313,1749096646485,-440.0,0.000185,2]
[364416315,1749096646495,-131.3741349,0.000185,2]
[364416317,1749096646509,-308.6258651,0.000185,2]
[364416319,1749096646519,-397.05023977,0.000185,2]
[364416321,1749096646528,-440.0,0.000185,2]
[364416323,1749096646538,-440.0,0.000185,2]
[364416325,1749096646547,-333.25588157,0.000185,2]
[364416328,1749096646558,-106.74411843,0.000185,2]
[364416329,1749096646567,-390.0,0.000185,2]
[364416332,1749096646576,-257.93662752,0.000185,2]
[364416334,1749096646588,-182.06337248,0.000185,2]
[364416336,1749096646598,-440.0,0.000185,2]
[364416338,1749096646607,-408.40484658,0.000185,2]
[364416340,1749096646616,-449.86,0.000185,2]
[364416342,1749096646626,-440.0,0.000185,2]
[364416344,1749096646635,-440.0,0.000185,2]
[364416345,1749096646644,-430.0,0.000185,2]
[364416347,1749096646654,-545.50742961,0.000185,2]
[364416349,1749096646663,-440.0,0.000185,2]
[364416352,1749096646675,-440.0,0.000185,2]
[364416354,1749096646685,-440.0,0.000185,2]
[364416355,1749096646694,-400.0,0.00018501,2]
[364416358,1749096646704,-390.0,0.00018501,2]
[364416360,1749096646713,-390.0,0.00018501,2]
[364416361,1749096646722,-400.83407971,0.00018501,2]
[364416363,1749096646732,-440.0,0.00018501,2]
[364416365,1749096646741,-244.18608385,0.00018501,2]
[364416368,1749096646753,-249.25982472,0.00018501,2]
[364416370,1749096646763,-1647.12,0.00018501,2]
[364416372,1749096646772,-505.83,0.00018501,2]
[364416374,1749096646782,-115.19203273,0.00018505,2]
[364416376,1749096646794,-1345.74796727,0.00018505,2]
[364416378,1749096646806,-440.0,0.00018505,2]
[364416380,1749096646816,-654.22,0.00018505,2]
[364416392,1749096646922,-634.9,0.00018505,2]
[364416394,1749096646931,-834.95,0.00018505,2]
[364416396,1749096646940,-390.0,0.00018506,2]
[364416398,1749096646950,-380.0,0.00018506,2]
[364416400,1749096646959,-1945.49950924,0.00018624,2]
[364416402,1749096646968,-360.0,0.0001863,2]
[364416404,1749096646977,-872.65,0.0001863,2]
[364416406,1749096646986,-1001.54,0.0001863,2]
[364416408,1749096646995,-1271.59,0.0001863,2]
[364416410,1749096647004,-440.0,0.0001863,2]
[364416412,1749096647014,-350.0,0.0001863,2]
[364416414,1749096647023,-440.0,0.0001863,2]
[364416416,1749096647032,-517.08,0.0001863,2]
[364416418,1749096647041,-530.83,0.0001863,2]
[364416420,1749096647051,-107.27794981,0.0001863,2]
[364416422,1749096647062,-332.72205019,0.0001863,2]
[364416424,1749096647072,-829.91,0.0001863,2]
[364416426,1749096647082,-1222.49,0.0001863,2]
[364416428,1749096647091,-36422.2,0.00018645,2]
[364416430,1749096647100,-152.118527,0.00018645,2]
[364416432,1749096647109,-440.0,0.00018774,2]
[364416434,1749096647118,-440.0,0.00018774,2]
[364416436,1749096647127,-440.0,0.00018774,2]
[364416438,1749096647136,-440.0,0.00018774,2]
[364416440,1749096647145,-494.06,0.00018774,2]
[364416442,1749096647155,-347.41524138,0.00018774,2]
[364416444,1749096647164,-440.0,0.00018774,2]
[364416446,1749096647173,-440.0,0.00018774,2]
[364416448,1749096647182,-440.0,0.00018774,2]
[364416449,1749096647192,-440.0,0.00018774,2]
[364416451,1749096647201,-440.0,0.00018774,2]
[364416453,1749096647210,-440.0,0.00018774,2]
[364416455,1749096647219,-440.0,0.00018774,2]
[364416457,1749096647228,-440.0,0.00018774,2]
[364416459,1749096647238,-449.86,0.00018774,2]
[364416461,1749096647247,-440.0,0.00018774,2]
[364416463,1749096647257,-440.0,0.00018774,2]
[364416465,1749096647266,-380.0,0.00018774,2]
[364416467,1749096647275,-440.0,0.00018774,2]
[364416469,1749096647286,-440.0,0.00018774,2]
[364416471,1749096647295,-440.0,0.00018775,2]
[364416473,1749096647304,-1647.12,0.00018775,2]
[364416475,1749096647314,-505.83,0.00018775,2]
[364416477,1749096647323,-151.0,0.00018775,2]
[364416479,1749096647333,-151.0,0.00018775,2]
[364416481,1749096647343,-231.503408,0.00018775,2]
[364416483,1749096647352,-231.503408,0.00018775,2]
[364416485,1749096647361,-1460.94,0.00018779,2]
[364416486,1749096647371,-5970.49,0.00018779,2]
[364416487,1749096647381,-440.0,0.00018779,2]
[364416488,1749096647391,-654.22,0.00018779,2]